fUST/lending_fUST_20240719
["ID","MTS","AMOUNT","RATE_DAILY","PERIOD"]
[332638425,1721393444555,-500.0,0.00019178,2]
[332638426,1721393444564,-500.0,0.00019178,2]
[332638427,1721393444574,-500.0,0.00019178,2]
[332638428,1721393444584,-500.0,0.00019178,2]
[332638429,1721393444593,-500.0,0.00019178,2]
[332638430,1721393444603,-500.0,0.00019178,2]
[332638431,1721393444613,-500.0,0.00019178,2]
[332638432,1721393444623,-500.0,0.00019178,2]
[332638433,1721393444632,-500.0,0.00019178,2]
[332638434,1721393444642,-500.0,0.00019178,2]
[332638435,1721393444653,-500.0,0.00019178,2]
[332638436,1721393444664,-500.0,0.00019178,2]
[332638437,1721393444674,-500.0,0.00019178,2]
[332638438,1721393444683,-500.0,0.00019178,2]
[332638439,1721393444693,-628.99,0.00019178,2]
[332638440,1721393444703,-500.0,0.00019178,2]
[332638441,1721393444712,-500.0,0.00019178,2]
[332638442,1721393444722,-500.0,0.00019178,2]
[332638443,1721393444734,-500.0,0.00019178,2]
[332638444,1721393444743,-500.0,0.00019178,2]
[332638445,1721393444754,-500.0,0.00019178,2]
[332638446,1721393444764,-500.0,0.00019178,2]
[332638447,1721393444774,-500.0,0.00019178,2]
[332638448,1721393444783,-500.0,0.00019178,2]
[332638449,1721393444793,-500.0,0.00019178,2]
[332638450,1721393444803,-500.0,0.00019178,2]
[332638451,1721393444812,-500.0,0.00019178,2]
[332638452,1721393444822,-500.0,0.00019178,2]
[332638453,1721393444831,-500.0,0.00019178,2]
[332638454,1721393444841,-500.0,0.00019178,2]
[332638455,1721393444851,-500.0,0.00019178,2]
[332638456,1721393444861,-500.0,0.00019178,2]
[332638457,1721393444871,-500.0,0.00019178,2]
[332638458,1721393444881,-500.0,0.00019178,2]
[332638459,1721393444891,-500.0,0.00019178,2]
[332638460,1721393444902,-500.0,0.00019178,2]
[332638461,1721393444911,-500.0,0.00019178,2]
[332638462,1721393444921,-500.0,0.00019178,2]
[332638463,1721393444930,-500.0,0.00019178,2]
[332638464,1721393444940,-712.18,0.00019178,2]
[332638465,1721393444949,-500.0,0.00019178,2]
[332638466,1721393444959,-500.0,0.00019178,2]
[332638467,1721393444969,-500.0,0.00019178,2]
[332638468,1721393444979,-502.08334899,0.00019178,2]
[332638469,1721393444988,-524.40491596,0.00019178,2]
[332638470,1721393444998,-500.0,0.00019178,2]
[332638471,1721393445008,-462.77916055,0.00019178,2]
[332638472,1721393445017,-500.0,0.00019178,2]
[332638473,1721393445027,-500.0,0.00019178,2]
[332638474,1721393445036,-500.0,0.00019178,2]
[332638475,1721393445045,-500.0,0.00019178,2]
[332638476,1721393445055,-500.0,0.00019178,2]
[332638477,1721393445064,-500.0,0.00019178,2]
[332638478,1721393445073,-500.0,0.00019178,2]
[332638479,1721393445084,-500.0,0.00019178,2]
[332638480,1721393445095,-500.0,0.00019178,2]
[332638481,1721393445106,-500.0,0.00019178,2]
[332638482,1721393445116,-500.0,0.00019178,2]
[332638483,1721393445126,-500.0,0.00019178,2]
[332638484,1721393445136,-500.0,0.00019178,2]
[332638485,1721393445145,-500.0,0.00019178,2]
[332638486,1721393445157,-221.85435144,0.00019178,2]
[332638487,1721393445167,-500.0,0.00019178,2]
[332638488,1721393445176,-500.0,0.00019178,2]
[332638489,1721393445186,-500.0,0.00019178,2]
[332638490,1721393445196,-500.0,0.00019178,2]
[332638491,1721393445206,-500.0,0.00019178,2]
[332638492,1721393445215,-500.0,0.00019178,2]
[332638493,1721393445225,-402.31588814,0.00019178,2]
[332638494,1721393445234,-500.0,0.00019178,2]
[332638495,1721393445244,-500.0,0.00019178,2]
[332638496,1721393445261,-500.0,0.00019178,2]
[332638497,1721393445271,-500.0,0.00019178,2]
[332638498,1721393445280,-500.0,0.00019178,2]
[332638499,1721393445291,-3186.36,0.00019178,2]
[332638500,1721393445300,-500.0,0.00019178,2]
[332638501,1721393445310,-500.0,0.00019178,2]
[332638502,1721393445319,-500.0,0.00019178,2]
[332638503,1721393445329,-500.0,0.00019178,2]
[332638504,1721393445338,-500.0,0.00019178,2]
[332638505,1721393445347,-500.0,0.00019178,2]
[332638506,1721393445356,-500.0,0.00019178,2]
[332638507,1721393445366,-500.0,0.00019178,2]
[332638508,1721393445375,-500.0,0.00019178,2]
[332638509,1721393445386,-500.0,0.00019178,2]
[332638510,1721393445395,-500.0,0.00019178,2]
[332638511,1721393445407,-500.0,0.00019178,2]
[332638512,1721393445416,-500.0,0.00019178,2]
[332638513,1721393445426,-500.0,0.00019178,2]
[332638514,1721393445435,-500.0,0.00019178,2]
[332638515,1721393445445,-500.0,0.00019178,2]
[332638516,1721393445454,-500.0,0.00019178,2]
[332638517,1721393445463,-4766.25,0.00019178,2]
[332638518,1721393445472,-4766.25,0.00019178,2]
[332638519,1721393445481,-4766.25,0.00019178,2]
[332638520,1721393445492,-4766.25,0.00019178,2]
[332638521,1721393445502,-4766.25,0.00019178,2]
[332638522,1721393445512,-4766.25,0.00019178,2]
[332638523,1721393445521,-4766.25,0.00019178,2]
[332638524,1721393445531,-4766.25,0.00019178,2]
[332638525,1721393445540,-4766.25,0.00019178,2]
[332638526,1721393445549,-500.0,0.00019178,2]
[332638527,1721393445559,-4766.25,0.00019178,2]
[332638528,1721393445568,-500.0,0.00019178,2]
[332638529,1721393445578,-500.0,0.00019178,2]
[332638530,1721393445587,-1732.06767301,0.00019178,2]
[332638615,1721394369940,197.0,0.00014501,2]
[332638618,1721394551153,-166.666666,0.00014795,2]
[332638619,1721394551175,-150.112233,0.00016,2]
[332638620,1721394551198,-74.87339831,0.00017,2]
[332638670,1721394640245,-166.666666,0.00014795,2]
[332638671,1721394640255,-75.23883469,0.00017,2]
[332638672,1721394640265,-154.80649189,0.00017019,2]
[332638673,1721394640275,-155.17601714,0.00017403,2]
[332638674,1721394640284,-150.112233,0.00018,2]
[332638675,1721394640294,-153.0,0.00018439,2]
[332638676,1721394640303,-153.0,0.00018439,2]
[332638677,1721394640312,-153.0,0.00018439,2]
[332638678,1721394640323,-153.0,0.00018439,2]
[332638679,1721394640332,-93.49343436,0.00018658,2]
[332638706,1721394642978,-652.31014243,0.00018658,2]
[332638707,1721394642988,-620.0,0.00018825,2]
[332638708,1721394642998,-1460.44811525,0.000189,2]
[332638709,1721394643007,-300.0,0.00018999,2]
[332638710,1721394643016,-150.112233,0.00019,2]
[332638711,1721394643025,-9034.35544232,0.00019,2]
[332638764,1721394646011,-1638.42776339,0.00019,2]
[332638765,1721394646021,-2132.34534,0.00019067,2]
[332638766,1721394646031,-3232.22689661,0.00019154,2]
[332638773,1721395475177,273.37336231,9.9e-05,2]
[332638775,1721395548419,34978.9335217,0.00012,2]
[332638777,1721395560389,209.35070592,0.00012,2]
[332638778,1721395563628,245.18734288,0.00012,2]
[332638780,1721395571394,218.06169997,0.00012,2]
[332638786,1721395674839,378.2458032,0.00012,2]
[332638787,1721395678880,24900.0,0.00014298,2]
[332638788,1721395683323,309.31950403,9.999e-05,2]
[332638789,1721395699038,208.24444809,9.999e-05,2]
[332638790,1721395702917,269.84990772,9.999e-05,2]
[332638791,1721395704794,-300.0,0.00014544,2]
[332638792,1721395704822,-440.99287524,0.00014545,2]
[332638793,1721395704856,-740.99287524,0.00014545,2]
[332638794,1721395704890,-411.10897539,0.00014545,2]
[332638795,1721395707641,240.45271023,9.999e-05,2]
[332638797,1721395721829,17990.6483562,0.0001,2]
[332638798,1721395750128,239.94885415,0.0001212,2]
[332638799,1721395754770,-43.89522465,0.00014545,2]
[332638800,1721395754800,-689.26662371,0.00014545,2]
[332638801,1721395771122,-57.47130248,0.00014545,2]
[332638802,1721395771144,-154.80649189,0.0001469,2]
[332638803,1721395771170,-166.666666,0.00014795,2]
[332638804,1721395771192,-300.0,0.00015706,2]
[332638805,1721395771214,-6582.27484689,0.00015707,2]
[332638931,1721395838308,-287.38831,0.00015707,2]
[332638950,1721395838500,-35421.84609346,0.00015707,2]
[332638951,1721395838511,-1865.8021725,0.00017177,2]
[332638952,1721395838521,-1865.80217243,0.00017801,2]
[332638953,1721395838531,-5922.09149986,0.00018125,2]
[332638954,1721395838541,-1570.70064379,0.00018356,2]
[332638955,1721395838551,-1865.80217243,0.00018424,2]
[332638956,1721395838561,-1882.17702154,0.00018557,2]
[332638957,1721395838570,-4375.05910698,0.00018629,2]
[332638958,1721395838581,-4375.05910698,0.00018629,2]
[332638959,1721395838591,-277.07523786,0.00018667,2]
[332638960,1721395838600,-526.68531291,0.00018845,2]
[332638961,1721395838610,-156.50340593,0.00018845,2]
[332638962,1721395838620,-973.63207683,0.000189,2]
[332638963,1721395838629,-777.88627174,0.00018979,2]
[332638964,1721395838639,-181.84215111,0.00019038,2]
[332638965,1721395838649,-154.80649189,0.00019038,2]
[332638966,1721395838658,-1865.80217243,0.00019048,2]
[332638967,1721395838668,-2906.20102027,0.00019158,2]
[332638973,1721395840251,-5242.21865499,0.00019158,2]
[332639011,1721395846334,-4375.05910698,0.00018557,2]
[332639012,1721395846344,-526.68531291,0.00018845,2]
[332639013,1721395846354,-5491.37102654,0.00019158,2]
[332639039,1721396792292,-166.666666,0.00014795,2]
[332639040,1721396792313,-358.33947486,0.00016095,2]
[332639106,1721397032682,-166.666666,0.00014795,2]
[332639108,1721397032692,-205.0,0.00015494,2]
[332639110,1721397032702,-24890.0,0.00015495,2]
[332639112,1721397032711,-1882.17702154,0.00015952,2]
[332639114,1721397032720,-300.0,0.00016094,2]
[332639117,1721397032731,-3776.426534,0.00016095,2]
[332639119,1721397032740,-155.1341261,0.00016095,2]
[332639121,1721397032749,-154.8257247,0.00016095,2]
[332639122,1721397032759,-350.86638177,0.00016095,2]
[332639123,1721397032768,-155.11378883,0.00016095,2]
[332639124,1721397032777,-184.39320847,0.00016095,2]
[332639125,1721397032786,-2108.86510417,0.00016095,2]
[332639126,1721397032795,-4705.80644641,0.00016095,2]
[332639127,1721397032805,-5871.85052297,0.00016095,2]
[332639128,1721397032816,-179.792128,0.0001639,2]
[332639129,1721397032826,-30003.9642366,0.00017389,2]
[332639130,1721397032839,-569.49355015,0.00017389,2]
[332639224,1721397038471,-2197.23870412,0.00017389,2]
[332639226,1721397038486,-15012.93613571,0.00017389,2]
[332639227,1721397038496,-2152.19719736,0.00017402,5]
[332639229,1721397038505,-256.624659,0.00017428,2]
[332639231,1721397038515,-420.0,0.00017703,2]
[332639232,1721397038525,-5922.09149986,0.00018125,2]
[332639233,1721397038534,-4375.05910698,0.00018316,2]
[332639234,1721397038544,-4375.05910698,0.00018316,2]
[332639235,1721397038553,-303.888409,0.00018418,2]
[332639236,1721397038565,-380.058021,0.00018418,2]
[332639237,1721397038576,-151.944205,0.00018418,2]
[332639238,1721397038586,-530.31617628,0.000186,4]
[332639239,1721397038596,-303.888409,0.00018648,2]
[332639240,1721397038605,-151.944205,0.00018648,2]
[332639241,1721397038614,-380.058021,0.00018648,2]
[332639242,1721397038624,-154.80649189,0.00018658,2]
[332639243,1721397038633,-156.50340593,0.00018658,2]
[332639244,1721397038643,-526.68531291,0.00018701,2]
[332639245,1721397038653,-526.68531291,0.00018701,2]
[332639246,1721397038662,-620.0,0.00018778,2]
[332639247,1721397038672,-932.90108625,0.00018778,2]
[332639248,1721397038682,-1245.78670525,0.00018845,2]
[332639249,1721397038692,-303.888409,0.00018878,2]
[332639250,1721397038702,-380.058021,0.00018878,2]
[332639251,1721397038712,-151.944205,0.00018878,2]
[332639252,1721397038722,-5054.047162,0.000189,2]
[332639253,1721397038732,-649.08805122,0.000189,2]
[332639254,1721397038741,-2708.53736941,0.00018979,2]
[332639255,1721397038751,-2708.53736941,0.00018989,2]
[332639256,1721397038761,-981.22062177,0.00018989,2]
[332639257,1721397038772,-303.888409,0.00019109,2]
[332639258,1721397038782,-380.058021,0.00019109,2]
[332639259,1721397038792,-151.944205,0.00019109,2]
[332639260,1721397038802,-361.199,0.00019129,2]
[332639261,1721397038812,-772.09,0.00019138,3]
[332639262,1721397038821,-2365.19129024,0.00019148,2]
[332639263,1721397038842,-11940.22005326,0.00019148,2]
[332639264,1721397038851,-151.0,0.00019158,2]
[332639265,1721397038861,-151.0,0.00019167,2]
[332639266,1721397038870,-266.29956,0.00019167,2]
[332639267,1721397038882,-154.327644,0.00019167,2]
[332639268,1721397038893,-266.29956,0.00019167,2]
[332639269,1721397038902,-165.183616,0.00019167,2]
[332639270,1721397038912,-30000.0,0.00019167,2]
[332639271,1721397038921,-400.0,0.00019167,2]
[332639272,1721397038931,-500.0,0.00019167,2]
[332639273,1721397038940,-304.52844903,0.00019167,2]
[332639274,1721397038950,-14305.4113435,0.00019168,2]
[332639275,1721397038959,-151.0,0.00019168,2]
[332639276,1721397038970,-401.33204,0.00019168,2]
[332639277,1721397038980,-401.33204,0.00019168,2]
[332639278,1721397038990,-185.062816,0.00019168,2]
[332639279,1721397038999,-266.29956,0.00019168,2]
[332639280,1721397039009,-266.29956,0.00019168,2]
[332639281,1721397039018,-42.27088617,0.00019168,2]
[332639282,1721397039034,-51434.87331916,0.00019168,2]
[332639287,1721397040530,-277.07523786,0.00018402,2]
[332639288,1721397040540,-288.22688258,0.00019167,2]
[332639289,1721397040549,-4127.1105053,0.00019168,2]
[332639530,1721398200835,166.666666,0.00014695,2]
[332639532,1721398207725,-741.42712048,0.00014695,2]
[332639533,1721398207787,-699.59782412,0.00014695,2]
[332639583,1721398233760,-164.96019726,0.00014695,2]
[332639585,1721398233770,-166.666666,0.00014795,2]
[332639587,1721398233779,-179.792128,0.0001555,2]
[332639589,1721398233789,-3085.40967143,0.00015708,2]
[332639591,1721398233799,-3000.0,0.00016157,2]
[332639593,1721398233808,-179.792128,0.0001636,2]
[332639595,1721398233818,-300.0,0.00016997,2]
[332639597,1721398233828,-300.0,0.00016997,2]
[332639599,1721398233838,-2723.44828231,0.00016998,2]
[332639660,1721398239149,-181.61309775,0.0001611,2]
[332639662,1721398239159,-38907.97085232,0.00016998,2]
[332639664,1721398239171,-7266.86254227,0.00016998,2]
[332639666,1721398239181,-816.28845046,0.00017237,2]
[332639668,1721398239190,-816.28845043,0.00017852,2]
[332639670,1721398239200,-157.8737244,0.00018078,2]
[332639672,1721398239209,-153.0,0.00018078,2]
[332639674,1721398239219,-153.0,0.00018078,2]
[332639676,1721398239228,-153.0,0.00018078,2]
[332639678,1721398239237,-153.0,0.00018078,2]
[332639680,1721398239247,-5512.28778417,0.00018316,2]
[332639682,1721398239256,-38791.09682208,0.00018356,2]
[332639685,1721398239271,-1028.5970334,0.00018356,2]
[332639688,1721398239281,-307.603546,0.00018378,2]
[332639691,1721398239294,-153.0,0.00018378,2]
[332639694,1721398239304,-153.0,0.00018378,2]
[332639697,1721398239313,-153.0,0.00018378,2]
[332639700,1721398239324,-153.0,0.00018378,2]
[332639702,1721398239334,-816.28845043,0.00018467,2]
[332639704,1721398239345,-10758.9902746,0.00018657,2]
[332639706,1721398239356,-7072.96575367,0.00018667,2]
[332639708,1721398239365,-192.97707512,0.00018679,2]
[332639710,1721398239375,-10758.9902746,0.00018691,2]
[332639712,1721398239384,-1107.38930569,0.00018696,2]
[332639714,1721398239393,-420.0,0.00018696,2]
[332639715,1721398239403,-2123.06633741,0.00018701,2]
[332639716,1721398239412,-303.21123762,0.0001872,2]
[332639717,1721398239422,-726.4559758,0.00018773,2]
[332639718,1721398239431,-154.79103211,0.00018773,2]
[332639719,1721398239440,-663.27305224,0.00018773,2]
[332639720,1721398239450,-9532.37378373,0.00018773,2]
[332639721,1721398239465,-1068.93403001,0.00018773,2]
[332639722,1721398239475,-222.82901463,0.00018786,2]
[332639723,1721398239484,-307.24636156,0.00018786,2]
[332639724,1721398239494,-155.26579837,0.00018825,2]
[332639725,1721398239504,-319.25753287,0.00018825,2]
[332639726,1721398239513,-1819.35038745,0.00018845,2]
[332639727,1721398239522,-4375.05910698,0.00018845,2]
[332639728,1721398239532,-155.07135854,0.00018845,2]
[332639729,1721398239545,-403.14060872,0.00018845,2]
[332639730,1721398239555,-197.3073221,0.00018845,2]
[332639731,1721398239565,-153.0,0.0001885,2]
[332639732,1721398239575,-204.39643905,0.00018899,2]
[332639733,1721398239584,-154.79103211,0.00018899,2]
[332639734,1721398239593,-778.55365615,0.00018899,2]
[332639735,1721398239604,-153.0,0.000189,2]
[332639736,1721398239613,-153.0,0.000189,2]
[332639737,1721398239623,-432.72536748,0.000189,2]
[332639738,1721398239632,-201.75796019,0.0001891,2]
[332639739,1721398239641,-284.50722532,0.00018921,2]
[332639740,1721398239651,-155.9589996,0.00018921,2]
[332639741,1721398239660,-284.50722532,0.00018921,2]
[332639742,1721398239670,-521.17738443,0.00018945,2]
[332639743,1721398239680,-277.07523786,0.00018945,2]
[332639744,1721398239690,-156.58671833,0.00018945,2]
[332639745,1721398239699,-530.17691837,0.00018945,2]
[332639747,1721398239709,-156.58671833,0.00018945,2]
[332639749,1721398239719,-10758.9902746,0.00018959,2]
[332639751,1721398239728,-1045.95559493,0.00018969,2]
[332639753,1721398239738,-529.80393287,0.00018979,2]
[332639755,1721398239749,-567.73879262,0.00018989,2]
[332639758,1721398239759,-193.97332904,0.00018989,2]
[332639760,1721398239768,-980.61422822,0.00018989,2]
[332639762,1721398239778,-533.13715373,0.00019046,2]
[332639764,1721398239788,-493.50123803,0.00019046,2]
[332639766,1721398239804,-816.28845043,0.00019082,2]
[332639768,1721398239813,-178.70954864,0.00019102,2]
[332639770,1721398239823,-154.79103211,0.00019139,2]
[332639772,1721398239832,-196.17927646,0.00019139,2]
[332639774,1721398239842,-154.79103211,0.00019147,2]
[332639776,1721398239851,-10758.9902746,0.00019167,2]
[332639778,1721398239861,-151.0,0.00019167,2]
[332639780,1721398239872,-500.0,0.00019167,2]
[332639782,1721398239881,-201.75881781,0.00019167,2]
[332639784,1721398239891,-213.16991432,0.00019167,2]
[332639786,1721398239900,-548.00248254,0.00019167,2]
[332639788,1721398239909,-500.0,0.00019167,2]
[332639790,1721398239919,-30000.0,0.00019167,2]
[332639792,1721398239928,-5349.92309521,0.00019168,2]
[332639794,1721398239943,-5409.06717939,0.00019168,2]
[332639796,1721398239952,-1076.09859868,0.00019168,5]
[332639798,1721398239961,-4705.80644641,0.00019168,2]
[332639800,1721398239971,-287.72462905,0.00019168,2]
[332639802,1721398239984,-260.796698,0.00019168,2]
[332639804,1721398239993,-2105.18558339,0.00019168,2]
[332639806,1721398240003,-3779.26241666,0.00019168,2]
[332639808,1721398240012,-230.27750003,0.00019168,2]
[332639810,1721398240022,-151.0,0.00019168,2]
[332639812,1721398240032,-151.0,0.00019168,2]
[332639814,1721398240045,-361.198836,0.00019168,2]
[332639816,1721398240055,-361.198836,0.00019168,2]
[332639818,1721398240066,-361.198836,0.00019168,2]
[332639820,1721398240076,-361.198836,0.00019168,2]
[332639822,1721398240085,-213.039648,0.00019168,2]
[332639823,1721398240095,-213.039648,0.00019168,2]
[332639825,1721398240103,-213.039648,0.00019168,2]
[332639827,1721398240113,-213.039648,0.00019168,2]
[332639829,1721398240123,-7330.88193208,0.00019168,2]
[332639833,1721398240134,-100259.02081392,0.00019168,2]
[332639835,1721398240144,-5000.0,0.00019177,2]
[332639837,1721398240153,-5000.0,0.00019177,2]
[332639839,1721398240163,-3957.56903871,0.00019177,2]
[332639841,1721398240172,-25391.88621825,0.00019178,5]
[332639843,1721398240184,-9216.82816213,0.00019178,5]
[332640192,1721398244193,-376.96,0.00018647,3]
[332640193,1721398244203,-155.27620687,0.0001872,2]
[332640194,1721398244214,-277.07523786,0.00018921,2]
[332640195,1721398244224,-2242.44625007,0.00019177,2]
[332640196,1721398244237,-4739.53939222,0.00019177,2]
[332640197,1721398244247,-18372.69028318,0.00019178,5]
[332640198,1721398244257,-3034.18232699,0.00019178,2]
[332640199,1721398244267,-4766.25,0.00019178,2]
[332640200,1721398244277,-4766.25,0.00019178,2]
[332640201,1721398244286,-4766.25,0.00019178,2]
[332640202,1721398244297,-4766.25,0.00019178,2]
[332640203,1721398244307,-500.0,0.00019178,2]
[332640204,1721398244317,-4766.25,0.00019178,2]
[332640205,1721398244327,-4766.25,0.00019178,2]
[332640206,1721398244337,-4766.25,0.00019178,2]
[332640207,1721398244347,-4766.25,0.00019178,2]
[332640208,1721398244356,-500.0,0.00019178,2]
[332640209,1721398244367,-4766.25,0.00019178,2]
[332640210,1721398244377,-4766.25,0.00019178,2]
[332640211,1721398244387,-4766.25,0.00019178,2]
[332640212,1721398244396,-4766.25,0.00019178,2]
[332640213,1721398244406,-4766.30893496,0.00019178,2]
[332640214,1721398244415,-500.0,0.00019178,2]
[332640215,1721398244426,-500.0,0.00019178,2]
[332640216,1721398244436,-588.21377265,0.00019178,2]
[332640217,1721398244446,-500.0,0.00019178,2]
[332640218,1721398244456,-500.0,0.00019178,2]
[332640219,1721398244466,-500.0,0.00019178,2]
[332640220,1721398244475,-500.0,0.00019178,2]
[332640221,1721398244485,-500.0,0.00019178,2]
[332640222,1721398244495,-500.0,0.00019178,2]
[332640223,1721398244504,-500.0,0.00019178,2]
[332640224,1721398244514,-500.0,0.00019178,2]
[332640225,1721398244525,-500.0,0.00019178,2]
[332640226,1721398244534,-500.0,0.00019178,2]
[332640227,1721398244544,-500.0,0.00019178,2]
[332640228,1721398244557,-500.0,0.00019178,2]
[332640229,1721398244567,-500.0,0.00019178,2]
[332640230,1721398244576,-403.66215271,0.00019178,2]
[332640231,1721398244586,-2654.25,0.00019178,2]
[332640232,1721398244596,-500.0,0.00019178,2]
[332640233,1721398244606,-500.0,0.00019178,2]
[332640234,1721398244617,-500.0,0.00019178,2]
[332640235,1721398244626,-500.0,0.00019178,2]
[332640236,1721398244636,-500.0,0.00019178,2]
[332640237,1721398244646,-500.0,0.00019178,2]
[332640238,1721398244656,-500.0,0.00019178,2]
[332640239,1721398244666,-500.0,0.00019178,2]
[332640240,1721398244676,-500.0,0.00019178,2]
[332640241,1721398244685,-500.0,0.00019178,2]
[332640242,1721398244694,-217.830584,0.00019178,2]
[332640243,1721398244705,-500.0,0.00019178,2]
[332640244,1721398244714,-216.80824148,0.00019178,2]
[332640245,1721398244724,-500.0,0.00019178,2]
[332640246,1721398244734,-500.0,0.00019178,2]
[332640247,1721398244743,-500.0,0.00019178,2]
[332640248,1721398244752,-500.0,0.00019178,2]
[332640249,1721398244762,-500.0,0.00019178,2]
[332640250,1721398244772,-500.0,0.00019178,2]
[332640251,1721398244782,-500.0,0.00019178,2]
[332640252,1721398244791,-500.0,0.00019178,2]
[332640253,1721398244804,-500.0,0.00019178,2]
[332640254,1721398244814,-500.0,0.00019178,2]
[332640255,1721398244823,-500.0,0.00019178,2]
[332640256,1721398244832,-500.0,0.00019178,2]
[332640257,1721398244843,-369.89524146,0.00019178,2]
[332640258,1721398244852,-500.0,0.00019178,2]
[332640259,1721398244862,-500.0,0.00019178,2]
[332640260,1721398244872,-500.0,0.00019178,2]
[332640261,1721398244881,-500.0,0.00019178,2]
[332640262,1721398244891,-500.0,0.00019178,2]
[332640263,1721398244902,-500.0,0.00019178,2]
[332640264,1721398244911,-500.0,0.00019178,2]
[332640265,1721398244922,-503.22640116,0.00019178,2]
[332640266,1721398244932,-500.0,0.00019178,2]
[332640267,1721398244942,-583.61,0.00019178,2]
[332640268,1721398244952,-500.0,0.00019178,2]
[332640269,1721398244962,-384.18801004,0.00019178,2]
[332640270,1721398244973,-500.0,0.00019178,2]
[332640271,1721398244987,-253.64818551,0.00019178,2]
[332640272,1721398244996,-394.06907291,0.00019178,2]
[332640273,1721398245006,-414.13985495,0.00019178,2]
[332640274,1721398245017,-500.0,0.00019178,2]
[332640275,1721398245027,-500.0,0.00019178,2]
[332640277,1721398245037,-500.0,0.00019178,2]
[332640278,1721398245049,-500.0,0.00019178,2]
[332640279,1721398245060,-500.0,0.00019178,2]
[332640280,1721398245070,-500.0,0.00019178,2]
[332640281,1721398245080,-500.0,0.00019178,2]
[332640282,1721398245090,-500.0,0.00019178,2]
[332640283,1721398245100,-500.0,0.00019178,2]
[332640285,1721398245111,-267.12939828,0.00019178,2]
[332640460,1721398246760,-154.79103211,0.0001891,2]
[332640461,1721398246770,-196.17927646,0.00019139,2]
[332640462,1721398246779,-232.87060172,0.00019178,2]
[332640463,1721398246789,-514.46089773,0.00019178,2]
[332640464,1721398246801,-500.0,0.00019178,2]
[332640465,1721398246811,-500.0,0.00019178,2]
[332640466,1721398246820,-500.0,0.00019178,2]
[332640467,1721398246830,-614.24581285,0.00019178,2]
[332640468,1721398246839,-503.35613526,0.00019178,2]
[332640469,1721398246849,-271.46926943,0.00019178,2]
[332640509,1721398657465,166.666666,0.00014795,2]
[332640510,1721398718094,187.64804383,0.00014795,2]
[332640511,1721398720432,309.30406586,0.00014795,2]
[332640512,1721398727096,195.81326239,0.00014795,2]
[332640513,1721398742100,195.81326239,0.00014795,2]
[332640514,1721398743704,228.9493905,0.00014795,2]
[332640515,1721398745483,226.46621289,0.00014795,2]
[332640516,1721398753286,2105.76943121,0.00014795,2]
[332640517,1721398754063,3383.56966493,0.00014795,2]
[332640519,1721398851524,-300.0,0.00014794,2]
[332640520,1721398851548,-1322.23678148,0.00014795,2]
[332640521,1721398851571,-3780.33344065,0.00014795,2]
[332640522,1721398851595,-19434.15346196,0.00014795,2]
[332640523,1721398866279,2105.76943121,0.00014795,2]
[332640530,1721398931099,4705.80644641,0.00014795,2]
[332640531,1721398933694,11144.82898308,0.00014795,2]
[332640532,1721398944716,3768.81335288,0.00014795,2]
[332640533,1721398961274,263.62061027,0.00014795,2]
[332640534,1721398970662,154.82195475,0.00014795,2]
[332640537,1721399032592,4705.80644641,0.00014795,2]
[332640541,1721399146595,1313.66049884,0.00014795,2]
[332640543,1721399172161,155.88041204,0.00014795,2]
[332640545,1721399205721,3776.426534,0.00014795,2]
[332640546,1721399228652,166.666666,0.00014795,2]
[332640557,1721399313405,9994.4335409,0.000139,2]
[332640605,1721399432706,-150.0,0.00016,2]
[332640606,1721399432716,-171.32771551,0.00016038,2]
[332640607,1721399432726,-18.17230109,0.00016095,2]